[Event "55th Iranian-ch Men Final 2022"]
[Site "Iran"]
[Date "2022.06.22"]
[Round "10.4"]
[White "Poormosavi, Seyed Kian"]
[Black "Mousavi, Seyed Khalil"]
[Result "1/2-1/2"]
[ECO "C45"]
[WhiteElo "2358"]
[BlackElo "2524"]
[Annotator "TA"]
[PlyCount "36"]
[EventDate "2022.06.15"]
[EventType "tourn"]
[EventCountry "IRI"]
[SourceTitle "playchess.com"]
[Source "ChessBase"]
[SourceQuality "1"]
[TimeControl "40/5400+30:1800+30"]

{[%evp 16,36,7,-1,-2,-2,-2,-15,-6,-8,-21,-10,0,-8,0,0,0,-9,23,12,12,9,62]} 1. e4 {[%emt 0:06:12]} e5 {[%emt 0:00:06]} 2. Nf3 {[%emt 0:00:21]} Nc6 {[%emt 0:00:20]} 3. d4 {[%emt 0:00:09]} exd4 {[%emt 0:00:38]} 4. Nxd4 {[%emt 0:00:02]} Nf6 {[%emt 0:03:15][%cal Bg8f6,Bf6d5,Bd5b6][%mdl 32]} 5. Nxc6 {[%emt 0:00:19]} bxc6 {[%emt 0:00:06]} 6. e5 {[%emt 0:00:14]} Qe7 {[%emt 0:00:57]} 7. Qe2 {[%emt 0:00:11]} Nd5 {[%emt 0:00:07]} 8. c4 {[%emt 0:00:05]} Nb6 {[%emt 0:00:48]} 9. Nc3 {[%emt 0:18:36]} Qe6 {[%emt 0:01:54] C45: Scotch Game.} 10. b3 {[%emt 0:07:41]} a5 {[%emt 0:02:18]} 11. Bd2 {[%emt 0:08:22]} a4 {[%emt 0:09:07] [#] And now ...axb3 would win.} 12. Rb1 {[%emt 0:00:28]} axb3 {[%emt 0:01:08]} 13. axb3 {[%emt 0:00:16]} Bb4 {[%emt 0:01:37]} 14. Qe4 $1 {[%emt 0:01:02]} d5 {[%emt 0:19:42]} 15. exd6 $1 {[%emt 0:04:41]} cxd6 {[%emt 0:01:46]} 16. Bd3 {[%emt 0:00:17] [#]} O-O $146 {[%emt 0:05:27] [#] Hoping for ...Bxc3.} ({Predecessor:} 16... d5 17. cxd5 cxd5 18. Qe3 d4 19. Qxe6+ Bxe6 20. Na4 Nd5 21. Be4 Rb8 22. Bxb4 Rxb4 {0-1 (42) Velimirovic,R-Somborski,N Yugoslavia 1996}) 17. O-O {[%emt 0:02:09][%csl Gd3,LRc6,LRh7][%cal Re4h7]} Qxe4 {[%emt 0:01:55]} 18. Bxe4 {[%emt 0:01:27]} Bd7 {[%emt 0:01:58] Weighted Error Value: White=0.02 (flawless) /Black=0.06 (flawless)} ({Black should play} 18... d5 $11 19. cxd5 Re8) 1/2-1/2

[Event "55th Iranian-ch Men Final 2022"]
[Site "Iran"]
[Date "2022.06.22"]
[Round "10.5"]
[White "Naderi, Abdollah"]
[Black "Ghaem Maghami, Ehsan"]
[Result "0-1"]
[ECO "A46"]
[WhiteElo "2050"]
[BlackElo "2519"]
[Annotator "TA"]
[PlyCount "76"]
[EventDate "2022.06.15"]
[EventType "tourn"]
[EventCountry "IRI"]
[SourceTitle "playchess.com"]
[Source "ChessBase"]
[SourceQuality "1"]
[TimeControl "40/5400+30:1800+30"]

{[%evp 12,76,-9,-11,-7,-14,-2,-6,-10,-13,0,0,25,0,43,7,0,-21,-7,-8,0,0,0,0,0,0,0,-43,-30,-30,-31,-68,-76,-85,-32,-61,-49,-122,-120,-375,-366,-364,-311,-417,-381,-457,-436,-486,-389,-833,-843,-1578,-504,-586,-568,-575,-557,-567,-481,-682,-676,-653,-618,-1070,-783,-1076,-1025]} 1. d4 {[%emt 0:00:53]} Nf6 {[%emt 0:17:09]} 2. Nf3 {[%emt 0:00:50]} e6 {[%emt 0:01:02]} 3. g3 {[%emt 0:01:16]} b5 {[%emt 0:00:56]} 4. Bg2 {[%emt 0:01:44]} c5 {[%emt 0:00:18]} 5. O-O {[%emt 0:05:31]} Bb7 {[%emt 0:00:24]} 6. a4 {[%emt 0:03:26]} b4 {[%emt 0:00:39]} 7. c4 {[%emt 0:00:46][%cal Od4d5]} cxd4 {[%emt 0:02:20] A46: 1 d4 Nf6 2 Nf3 e6: Torre, London and Colle Systems.} 8. Nbd2 {[%emt 0:16:07]} Qc7 {[%emt 0:19:45]} 9. Nxd4 {[%emt 0:06:06]} Bxg2 {[%emt 0:02:21] The position is equal.} 10. Kxg2 {[%emt 0:00:30] [#]} a6 $146 {[%emt 0:07:46]} ({Predecessor:} 10... Qb7+ 11. N2f3 Be7 12. Bf4 a6 13. Nb3 Nc6 14. Bd6 Ne4 15. Bxe7 Nxe7 16. Qd3 Rd8 {1-0 (45) Schatz,C (2193)-Dimitrov,D (2191) Pardubice 2019}) 11. e4 {[%emt 0:05:54]} Bc5 {[%emt 0:03:20]} 12. N4b3 {[%emt 0:04:32]} O-O {[%emt 0:13:46]} 13. Qe2 {[%emt 0:04:36]} d6 {[%emt 0:02:42]} 14. Re1 {[%emt 0:22:29]} Nc6 {[%emt 0:11:17]} 15. Nf3 {[%emt 0:06:05]} Nd7 {[%emt 0:04:06]} 16. Be3 {[%emt 0:02:27]} Rac8 {[%emt 0:02:05]} 17. Rad1 {[%emt 0:03:13]} Bxe3 {[%emt 0:02:29]} 18. Qxe3 {[%emt 0:00:29]} Nce5 {[%emt 0:00:59]} 19. Nbd2 {[%emt 0:02:33]} Ng4 {[%emt 0:03:50]} 20. Qe2 {[%emt 0:04:58]} Nc5 {[%emt 0:00:20]} 21. h3 {[%emt 0:00:31]} Ne5 {[%emt 0:00:09] aiming for ...Ned3.} 22. b3 {[%emt 0:01:23]} Ned3 {[%emt 0:01:55]} ({Black should play} 22... Nc6 $17) 23. Rf1 $1 $15 {[%emt 0:02:10]} d5 $36 {[%emt 0:01:00][%mdl 2048] Black has some pressure.} 24. e5 {[%emt 0:00:13]} ({Of course not} 24. exd5 exd5 25. Nh4 Rfe8 $17) (24. cxd5 $15 exd5 25. Ne1 dxe4 26. Nxe4) 24... Rfe8 $17 {[%emt 0:00:50] Black is much more active.} 25. Nb1 $2 {[%emt 0:01:49][%mdl 8192] Now White is beyond hope.} (25. Rb1 $17) 25... dxc4 $19 {[%emt 0:00:11]} 26. bxc4 {[%emt 0:00:13]} Rcd8 {[%emt 0:00:51]} 27. Rd2 {[%emt 0:02:37]} Rd7 {[%emt 0:00:22]} 28. Ra2 {[%emt 0:00:37]} Red8 {[%emt 0:00:18]} 29. Nbd2 {[%emt 0:00:20]} Qc6 {[%emt 0:00:21] Strongly threatening ...b3.} 30. a5 $2 {[%emt 0:00:35]} (30. Kh2) 30... b3 {[%emt 0:00:28] Black is clearly winning.} 31. Ra3 {[%emt 0:00:19] [#]} Qb7 {[%emt 0:00:36]} (31... Nf4+ $142 $1 {[%mdl 512]} 32. gxf4 Rxd2) 32. Kg1 {[%emt 0:00:41]} Qb4 {[%emt 0:00:18]} 33. Raa1 {[%emt 0:00:12]} b2 {[%emt 0:00:23]} 34. Rab1 {[%emt 0:00:06]} Nc1 {[%emt 0:01:08]} 35. Qe3 {[%emt 0:00:44]} (35. Rfxc1 $142 bxc1=N 36. Rxc1 Rxd2 37. Nxd2 Rxd2 38. Qe1) 35... Rxd2 {[%emt 0:00:39]} 36. Nxd2 {[%emt 0:00:59]} Rxd2 {[%emt 0:00:17]} 37. Qf3 {[%emt 0:00:02] [#] Intending Qa8+ and mate.} h6 {[%emt 0:00:40]} 38. Rd1 {[%emt 0:00:55]} Ne2+ {[%emt 0:01:30] Weighted Error Value: White=0.81/Black=0.34} 0-1

[Event "55th Iranian-ch Men Final 2022"]
[Site "Iran"]
[Date "2022.06.22"]
[Round "10.6"]
[White "Omidi, Arya"]
[Black "Ashraf, Artin"]
[Result "1-0"]
[ECO "B12"]
[WhiteElo "2321"]
[BlackElo "2096"]
[Annotator "TA"]
[PlyCount "95"]
[EventDate "2022.06.15"]
[EventType "tourn"]
[EventCountry "IRI"]
[SourceTitle "playchess.com"]
[Source "ChessBase"]
[SourceQuality "1"]
[TimeControl "40/5400+30:1800+30"]

{[%evp 10,95,29,23,33,27,40,31,34,0,13,15,-1,-16,0,0,36,29,33,37,57,54,57,35,34,38,73,66,87,90,82,69,84,39,41,42,40,18,29,22,40,33,46,-10,31,37,53,31,44,22,75,81,52,87,253,240,304,319,298,183,172,50,36,30,256,249,393,46,243,251,347,346,650,634,563,453,625,322,623,612,597,614,605,605,595,557,1403,1245]} 1. e4 {[%emt 0:00:01]} c6 {[%emt 0:10:17]} 2. d4 {[%emt 0:00:09]} d5 {[%emt 0:00:05]} 3. e5 {[%emt 0:00:07]} Bf5 {[%emt 0:00:09]} 4. Nf3 {[%emt 0:00:07]} e6 {[%emt 0:00:13]} 5. Be2 {[%emt 0:00:09]} Ne7 {[%emt 0:00:08]} 6. O-O {[%emt 0:00:08]} Ng6 {[%emt 0:00:10] B12: Caro-Kann: Advance Variation.} 7. a4 {[%emt 0:00:39]} c5 {[%emt 0:00:59]} 8. Be3 {[%emt 0:01:13] [#]} Bg4 $146 {[%emt 0:00:49] White is slightly better.} ({Predecessor:} 8... Nc6 9. dxc5 Ngxe5 10. Nxe5 Nxe5 11. Na3 Nc6 12. c3 Be7 13. f4 O-O 14. Qd2 Na5 {0-1 (60) Hagner,B (2186)-Collin,M (2052) Payerne 2022}) 9. c3 {[%emt 0:13:06]} cxd4 {[%emt 0:04:43]} 10. cxd4 {[%emt 0:01:04]} ({But not} 10. Qxd4 Bxf3 11. Bxf3 Nc6 $17) 10... Nc6 {[%emt 0:00:09]} 11. Qb3 {[%emt 0:08:19]} a6 {[%emt 0:16:57]} 12. Rc1 {[%emt 0:09:32]} (12. Qxb7 $2 Na5 13. Bb5+ axb5 14. Qxb5+ Qd7 $19) 12... Qc7 {[%emt 0:11:01] aiming for ...Bxf3.} 13. Nbd2 {[%emt 0:06:32]} Nge7 {[%emt 0:00:41]} 14. Qc3 {[%emt 0:06:13]} Qb6 {[%emt 0:19:31] Prevents b4.} 15. a5 {[%emt 0:14:07]} Qb4 {[%emt 0:00:20]} 16. Bd1 {[%emt 0:03:13]} Nc8 {[%emt 0:08:40][%cal Be7c8,Bc8a7,Ba7b5][%mdl 32]} 17. h3 {[%emt 0:08:30]} Bxf3 {[%emt 0:01:53]} 18. Nxf3 {[%emt 0:00:02]} Qe7 {[%emt 0:00:36]} 19. Bd2 {[%emt 0:04:45]} Qd7 {[%emt 0:01:19]} 20. Qd3 {[%emt 0:00:08]} N8a7 {[%emt 0:01:38]} 21. Bc3 {[%emt 0:01:14] White is more active.} Be7 {[%emt 0:01:08]} 22. Ba4 {[%emt 0:02:31]} O-O {[%emt 0:00:48]} 23. Re1 {[%emt 0:01:31]} Nb5 {[%emt 0:01:19]} 24. Bd2 {[%emt 0:03:35]} Rfc8 {[%emt 0:04:22]} 25. Bc2 $40 {[%emt 0:06:05][%mdl 128] White mounts an attack.} g6 {[%emt 0:00:58]} 26. Bb1 {[%emt 0:00:22]} ({Better is} 26. Ra4 $1 $14) 26... Bb4 {[%emt 0:01:04]} 27. h4 {[%emt 0:00:52][%cal Oh4h5]} Bxd2 {[%emt 0:03:56]} 28. Qxd2 {[%emt 0:00:05][%cal Oh4h5]} Qe7 {[%emt 0:01:05]} 29. Ra4 {[%emt 0:00:47][%cal Oh4h5,Ba1a4,Ba4a3,Ba3h3][%mdl 32]} f5 {[%emt 0:02:30]} (29... h5 $11) 30. exf6 $16 {[%emt 0:03:47]} Qxf6 {[%emt 0:00:01]} 31. h5 {[%emt 0:00:17]} gxh5 {[%emt 0:02:12]} (31... Rc7 $16) 32. Ng5 $1 $18 {[%emt 0:02:01]} Nbxd4 {[%emt 0:03:02]} 33. Nxh7 {[%emt 0:01:18]} Qg7 {[%emt 0:02:10]} 34. Ra3 {[%emt 0:00:05] Against Nf3+. Rg3 is the strong threat.} Ne5 {[%emt 0:00:50]} 35. Qf4 {[%emt 0:03:12] Against Ndf3+} (35. Qxd4 $2 Nf3+ $1 {[%mdl 512]} 36. Rxf3 Qxd4 $19) ({White has to play} 35. Qd1 $1 $18 {[%cal Rd1h5]} Ng4 36. Rh3) 35... Ng4 $14 {[%emt 0:00:42]} 36. Rh3 {[%emt 0:01:20] Chess con chili.} e5 $2 {[%emt 0:00:11] [#]} (36... Rc4 $1 $11 37. Qd2 Qh6 38. Qxh6 Nxh6) 37. Qd2 $1 $18 {[%emt 0:00:50]} e4 {[%emt 0:00:20]} (37... Qh6 $142 38. Qxh6 Nxh6 39. Nf6+ Kf7) 38. Ng5 $2 {[%emt 0:00:27]} (38. Rxh5 $18 Nxf2 39. Qxf2 (39. Rg5 $2 Nh3+ 40. gxh3 Nf3+ 41. Kf2 Nxd2 $19)) 38... Rf8 $2 {[%emt 0:00:32] [#]} (38... e3 $1 $14 39. fxe3 Qxg5 40. Qxd4 Rc7) 39. Nxe4 $1 {[%emt 0:00:33][%cal Oh3h5][%mdl 512]} dxe4 {[%emt 0:01:21]} (39... Rad8 40. Ba2) 40. Ba2+ {[%emt 0:00:00]} Rf7 $2 {[%emt 0:00:00]} (40... Kh7) 41. Rxe4 {[%emt 0:04:44]} Rd8 {[%emt 0:05:17][%cal Od4f3] Threatens to win with ...Nf3+!} 42. Qe1 {[%emt 0:03:38]} Rdf8 {[%emt 0:08:30]} 43. Re7 {[%emt 0:04:05][%mdl 64] Pin} Nf6 $2 {[%emt 0:05:05]} (43... Qf6 44. Rxh5 Kg7 45. Rxf7+ Rxf7 46. Bxf7 Kxf7 47. Rh7+ Kf8 48. Rxb7 Nc6) 44. Rg3 {[%emt 0:02:44] White is clearly winning.} Ng4 {[%emt 0:00:02]} 45. Rxf7 {[%emt 0:01:32][%mdl 64] Overworked Piece} Rxf7 {[%emt 0:00:04]} 46. Qe8+ {[%emt 0:00:12][%mdl 64] Pin, Deflection, Double Attack} Kh7 {[%emt 0:00:06]} 47. Bxf7 {[%emt 0:00:26]} Qg5 {[%emt 0:00:07] ( -> ...Qc1+)} 48. Bc4 {[%emt 0:04:30] Weighted Error Value: White=0.36/Black=0.51} 1-0

[Event "55th Iranian-ch Men Final 2022"]
[Site "Iran"]
[Date "2022.06.22"]
[Round "10.7"]
[White "Rastbod, Ali"]
[Black "Tahbaz, Arash"]
[Result "1-0"]
[ECO "A25"]
[WhiteElo "2362"]
[BlackElo "2451"]
[Annotator "TA"]
[PlyCount "93"]
[EventDate "2022.06.15"]
[EventType "tourn"]
[EventCountry "IRI"]
[SourceTitle "playchess.com"]
[Source "ChessBase"]
[SourceQuality "1"]
[TimeControl "40/5400+30:1800+30"]

{[%evp 11,93,16,20,18,9,23,24,19,41,19,21,26,22,16,31,21,29,8,6,8,6,16,11,8,3,10,18,0,45,42,64,21,121,4,9,8,26,12,35,28,40,0,24,14,91,81,87,69,79,94,80,65,78,62,181,152,168,184,173,164,179,148,189,152,205,221,204,190,195,199,250,156,126,136,491,492,778,766,744,684,1070,982,1013,931]} 1. c4 {[%emt 0:05:49]} g6 {[%emt 0:02:21]} 2. g3 {[%emt 0:01:12]} Bg7 {[%emt 0:01:46]} 3. Bg2 {[%emt 0:00:01]} Nc6 {[%emt 0:05:21]} 4. Nc3 {[%emt 0:02:16]} e5 {[%emt 0:01:13]} 5. Rb1 {[%emt 0:00:09]} f5 {[%emt 0:04:47]} 6. b4 {[%emt 0:06:37][%cal Bb2b4,Bb4b5][%mdl 32]} Nf6 {[%emt 0:00:39]} 7. b5 {[%emt 0:04:54] A25: English Opening vs King's Indian with ...Nc6 but without early d3.} Ne7 {[%emt 0:13:53]} 8. c5 {[%emt 0:03:49] [#]} O-O $146 {[%emt 0:16:45]} ({Predecessor:} 8... d5 9. cxd6 cxd6 10. Nf3 h6 11. Qb3 Nd7 12. Qb4 d5 13. d4 e4 14. Nd2 O-O {0-1 (42) Arnaudov,P-Radev Iordanov,N Sofia 1971}) 9. Nf3 {[%emt 0:33:23] White has an edge.} e4 {[%emt 0:00:39]} 10. Qb3+ $1 {[%emt 0:02:27]} Kh8 {[%emt 0:00:02]} 11. Ng5 {[%emt 0:00:06]} Qe8 $1 {[%emt 0:00:03]} 12. h4 {[%emt 0:05:52]} h6 {[%emt 0:03:27]} 13. Nh3 {[%emt 0:00:30]} b6 $1 {[%emt 0:00:04]} 14. Ba3 {[%emt 0:03:21]} bxc5 {[%emt 0:01:24]} 15. Bxc5 {[%emt 0:00:07]} d6 {[%emt 0:00:18]} 16. Bd4 {[%emt 0:03:10]} c5 {[%emt 0:08:52]} 17. bxc6 {[%emt 0:01:12]} Nxc6 {[%emt 0:00:20]} 18. Bxf6 {[%emt 0:00:05]} Bxf6 {[%emt 0:00:26]} 19. Nf4 {[%emt 0:00:12]} Nd4 {[%emt 0:01:11]} 20. Qd5 {[%emt 0:03:06][%csl LRa8,LRd6]} Be6 {[%emt 0:01:15]} 21. Nxe6 {[%emt 0:00:21]} (21. Qxd6 {is more complex.} Qf7 22. h5 gxh5 23. Rxh5 Rad8 24. Qa6) 21... Qxe6 {[%emt 0:36:14]} (21... Nxe6 $11 22. O-O Rd8) 22. Qxe6 {[%emt 0:02:43]} (22. e3 $16) 22... Nxe6 $11 {[%emt 0:00:00]} 23. Nd5 {[%emt 0:00:15]} Be5 {[%emt 0:00:00]} 24. O-O {[%emt 0:02:15]} (24. e3 {feels hotter.} Rab8 25. Ke2 h5 26. d4) 24... Nc5 {[%emt 0:00:00]} 25. Ne7 {[%emt 0:07:48]} Kg7 {[%emt 0:00:00]} 26. Nc6 {[%emt 0:01:00][%cal Be7c6,Bc6b4,Bb4d5][%mdl 32]} (26. h5 $5) 26... Bf6 {[%emt 0:00:00]} 27. d4 {[%emt 0:00:58]} Ne6 {[%emt 0:00:00]} (27... exd3 $11 {remains equal.} 28. exd3 Rae8) 28. e3 $16 {[%emt 0:00:19]} Rf7 {[%emt 0:00:00]} 29. Nb4 {[%emt 0:00:30]} Rb8 {[%emt 0:00:00] [#] And now ...Rfb7 would win.} 30. Nd5 {[%emt 0:00:30]} Rfb7 {[%emt 0:00:00]} 31. Rxb7+ {[%emt 0:00:30]} Rxb7 {[%emt 0:00:00]} 32. Rc1 {[%emt 0:03:40]} Nd8 {[%emt 0:00:00] Inhibits Rc6.} (32... Rb5 $1 $14) 33. a4 $18 {[%emt 0:00:30][%cal Ba2a4,Ba4a5,Ba5a6][%mdl 32]} Nf7 {[%emt 0:00:00]} 34. a5 {[%emt 0:00:30] Threatens to win with a6.} Bd8 {[%emt 0:00:00]} 35. a6 $36 {[%emt 0:01:43][%mdl 2048] Black is under strong pressure.} Rb5 {[%emt 0:00:00]} 36. Nf4 {[%emt 0:00:19]} Kf6 {[%emt 0:00:00]} 37. Bf1 {[%emt 0:00:30]} Ra5 {[%emt 0:00:00]} (37... Rb8 $16 {might work better.} 38. Nd5+ Ke6) 38. Rc8 {[%emt 0:00:30]} g5 {[%emt 0:00:00]} 39. hxg5+ {[%emt 0:04:24]} hxg5 {[%emt 0:00:00] [#]} 40. Nh5+ {[%emt 0:00:00]} Ke6 {[%emt 0:00:00]} (40... Kg6 $142) 41. g4 {[%emt 0:11:12]} f4 {[%emt 0:02:34]} 42. Ra8 {[%emt 0:04:07] White is more active.} Ra3 $2 {[%emt 0:03:03][%mdl 8192] This move loses the game for Black.} (42... d5 $16 {is tougher.}) 43. exf4 {[%emt 0:07:57] White is clearly winning.} Bb6 {[%emt 0:03:58]} (43... gxf4 $142 44. Nxf4+ Kf6) 44. Re8+ {[%emt 0:02:11]} Kd5 {[%emt 0:00:01]} 45. Nf6+ {[%emt 0:00:27]} Kc6 {[%emt 0:02:03]} 46. Rc8+ {[%emt 0:00:16]} Bc7 {[%emt 0:00:05]} 47. d5+ {[%emt 0:00:15] Weighted Error Value: White=0.13 (very precise) /Black=0.38} 1-0

[Event "55th Iranian-ch Men Final 2022"]
[Site "Iran"]
[Date "2022.06.22"]
[Round "11.1"]
[White "Tahbaz, Arash"]
[Black "Mosadeghpour, Masoud"]
[Result "1/2-1/2"]
[ECO "A08"]
[WhiteElo "2451"]
[BlackElo "2474"]
[Annotator "TA"]
[PlyCount "36"]
[EventDate "2022.06.15"]
[EventType "tourn"]
[EventCountry "IRI"]
[SourceTitle "playchess.com"]
[Source "ChessBase"]
[SourceQuality "1"]
[TimeControl "40/5400+30:1800+30"]

{[%evp 20,36,-12,-25,-35,-33,-31,-27,-27,-37,-12,-11,-10,-14,-4,-9,-7,-21,-29]} 1. Nf3 {[%emt 0:00:08]} d5 {[%emt 0:07:21]} 2. g3 {[%emt 0:00:16]} Nf6 {[%emt 0:01:31]} 3. Bg2 {[%emt 0:00:04]} g6 {[%emt 0:03:35]} 4. O-O {[%emt 0:03:16]} Bg7 {[%emt 0:00:08]} 5. d3 {[%emt 0:00:05]} O-O {[%emt 0:00:24]} 6. Nbd2 {[%emt 0:00:05]} c5 {[%emt 0:00:11]} 7. e4 {[%emt 0:00:04]} Nc6 {[%emt 0:00:12]} 8. Re1 {[%emt 0:00:04]} d4 {[%emt 0:00:08]} 9. a4 {[%emt 0:01:25]} e5 {[%emt 0:02:26]} 10. Nc4 {[%emt 0:00:14]} Ne8 $1 {[%emt 0:03:37] 10...Ne8 scores better than 10...Qc7.} 11. c3 {[%emt 0:04:07]} Nd6 {[%emt 0:01:44] A08: King's Indian Attack.} 12. Nxd6 {[%emt 0:00:34]} Qxd6 {[%emt 0:00:14]} 13. cxd4 {[%emt 0:00:06]} Nxd4 {[%emt 0:03:05] Black has an edge.} 14. Nxd4 {[%emt 0:00:09]} Qxd4 {[%emt 0:01:43]} 15. Qc2 {[%emt 1:27:23] The position is equal.} b6 {[%emt 1:11:41]} 16. Be3 {[%emt 0:00:30]} Qd6 {[%emt 0:00:30]} 17. a5 $1 {[%emt 0:00:30]} Be6 {[%emt 0:00:30] [#]} 18. axb6 $146 ({Predecessor:} 18. Ra3 Rad8 19. axb6 axb6 20. f4 exf4 21. gxf4 Bd4 22. Bxd4 Qxd4+ 23. Kh1 Rfe8 24. Ra6 {0-1 (36) Kraschl,J-Papaioannou,I (2335) Duisburg 1992}) 18... axb6 {Weighted Error Value: White=0.04 (flawless) /Black=0.01 (flawless)} 1/2-1/2

[Event "55th Iranian-ch Men Final 2022"]
[Site "Iran"]
[Date "2022.06.22"]
[Round "11.2"]
[White "Ashraf, Artin"]
[Black "Rastbod, Ali"]
[Result "0-1"]
[ECO "D31"]
[WhiteElo "2096"]
[BlackElo "2362"]
[Annotator "TA"]
[PlyCount "86"]
[EventDate "2022.06.15"]
[EventType "tourn"]
[EventCountry "IRI"]
[SourceTitle "playchess.com"]
[Source "ChessBase"]
[SourceQuality "1"]
[TimeControl "40/5400+30:1800+30"]

{[%evp 9,86,23,27,16,25,8,0,0,7,0,0,-16,0,0,0,-26,-25,-20,37,33,21,25,20,16,44,36,19,-6,0,-11,-14,-41,-26,-43,-51,-44,-50,-37,-26,-34,-37,-35,-27,-23,-35,-36,-42,-50,-52,-74,-59,-133,-150,-219,-231,-216,-179,-230,-108,-176,-162,-212,-185,-341,-338,-374,-354,-647,-648,-624,-619,-964,-820,-947,-931,-6149,-898,-5139,-860]} 1. c4 {[%emt 0:05:35]} e6 {[%emt 0:01:34]} 2. d4 {[%emt 0:00:11]} d5 {[%emt 0:00:01]} 3. Nc3 {[%emt 0:00:15]} Bb4 {[%emt 0:00:02]} 4. cxd5 {[%emt 0:00:16]} exd5 {[%emt 0:00:00]} 5. Bf4 {[%emt 0:00:16]} c6 {[%emt 0:00:01]} 6. e3 {[%emt 0:00:14] D31: Queen's Gambit Declined: Semi-Slav without ...Nf6 (+ Marshall Gambit and Noteboom) and Exchange Variation lines without ...Nf6.} Ne7 {[%emt 0:00:09][%cal Bg8e7,Be7g6,Bg6f8,Bf8e6,Be6d4][%mdl 32]} 7. Nge2 {[%emt 0:11:13] [#]} Ng6 $146 {[%emt 0:05:41]} ({Predecessor:} 7... O-O 8. a3 Bd6 9. Bxd6 Qxd6 10. Ng3 Nd7 11. Bd3 f5 12. Qc2 g6 13. Nce2 Nf6 {1-0 (40) Kaasen,T (2385)-Ajay Krishna,S (2302) Stockholm 2020}) 8. Bg3 {[%emt 0:04:12] The position is equal.} O-O {[%emt 0:01:40]} 9. h4 {[%emt 0:06:03][%cal Bh2h4,Bh4h5][%mdl 32]} Re8 {[%emt 0:04:34]} 10. a3 {[%emt 0:01:23]} Bd6 {[%emt 0:00:39]} 11. h5 {[%emt 0:14:21]} Nf8 {[%emt 0:00:38]} 12. Qc2 {[%emt 0:02:31]} Ne6 {[%emt 0:18:28]} 13. Rd1 {[%emt 0:10:54]} f5 {[%emt 0:14:59]} (13... h6 $11) 14. Bxd6 {[%emt 0:06:23]} ({Much weaker is} 14. Qxf5 Nxd4 15. Qd3 Nxe2 16. Nxe2 Bxg3 17. Nxg3 Qf6 $11) 14... Qxd6 {[%emt 0:00:03]} 15. Qxf5 {[%emt 0:00:16]} Nxd4 $1 {[%emt 0:00:11]} 16. Qf4 {[%emt 0:00:11]} Nf5 {[%emt 0:00:43]} 17. Qxd6 {[%emt 0:09:54]} Nxd6 {[%emt 0:00:02]} 18. Nd4 {[%emt 0:00:13]} Nd7 {[%emt 0:00:30]} 19. Be2 {[%emt 0:01:24]} Nf6 {[%emt 0:01:29]} 20. Kd2 {[%emt 0:06:00]} Ng4 {[%emt 0:21:36]} 21. Bxg4 {[%emt 0:03:53]} Bxg4 {[%emt 0:00:04]} 22. f3 {[%emt 0:00:17]} Bd7 {[%emt 0:02:02]} 23. b3 {[%emt 0:00:59] Prevents Nc4+.} Re5 {[%emt 0:03:05]} 24. g4 {[%emt 0:00:28]} c5 {[%emt 0:06:30]} 25. Nc2 {[%emt 0:02:11]} Nb5 {[%emt 0:00:44]} 26. Nxb5 {[%emt 0:05:41]} Bxb5 {[%emt 0:00:00]} 27. Rh2 {[%emt 0:00:39]} Bc6 {[%emt 0:01:07]} 28. Ne1 {[%emt 0:01:50]} Rae8 {[%emt 0:01:36]} 29. Re2 {[%emt 0:00:08]} R5e7 {[%emt 0:09:27] ...Bb5 is the strong threat.} 30. Nd3 {[%emt 0:02:11] [#]} ({Better is} 30. Ng2 $15) 30... c4 $1 $17 {[%emt 0:00:41]} 31. bxc4 {[%emt 0:01:20]} (31. Nb4 $17) 31... dxc4 $19 {[%emt 0:00:04]} 32. Ne1 {[%emt 0:00:46]} Ba4 {[%emt 0:04:38]} 33. Rc1 {[%emt 0:02:30]} (33. Nc2 $142) 33... b5 {[%emt 0:00:01]} (33... Rd7+ $19 {is more deadly.} 34. Kc3 Bd1 35. Rxd1 Rxd1 36. Kxc4 g6 37. hxg6 hxg6) 34. e4 {[%emt 0:00:48]} (34. Nc2 $17 {keeps fighting.}) 34... a5 {[%emt 0:00:00]} 35. Kc3 {[%emt 0:00:13]} (35. Ke3 $142) 35... Rb8 {[%emt 0:00:31] White must now prevent ...b4+.} 36. Rb2 {[%emt 0:01:20]} (36. Rb1 {was worth a try.}) 36... Rd7 {[%emt 0:00:55]} 37. f4 {[%emt 0:00:36]} Bb3 {[%emt 0:00:05]} 38. Re2 $2 {[%emt 0:00:46]} (38. Rf2 b4+ 39. Kb2) 38... b4+ {[%emt 0:00:15] Black is clearly winning.} 39. Kb2 {[%emt 0:00:11]} Bd1 {[%emt 0:01:59]} 40. Re3 {[%emt 0:00:00]} c3+ {[%emt 0:00:00]} 41. Kb1 {[%emt 0:01:26]} Rd2 {[%emt 0:02:24] [#] ( -> ...Bb3)} 42. Nf3 {[%emt 0:00:29]} Rb2+ {[%emt 0:02:04]} 43. Ka1 {[%emt 0:00:01]} Rd8 {[%emt 0:02:22] Weighted Error Value: White=0.63/Black=0.23 (precise)} (43... Bc2 $142 44. Nd4 b3 45. Nxb3 Bxb3 46. Rcxc3 Be6) 0-1